bitfinex-derivatives/quotes_BTCF0:USTF0_20251103
["timestamp","ask_amount","ask_price","bid_price","bid_amount"]
[1762209440425,0.52114034,106480.0,106470.0,0.04446]
[1762209440625,2.02114034,106480.0,106470.0,0.138406]
[1762209441022,2.02114034,106480.0,106470.0,0.04446]
[1762209441217,0.138396,106470.0,106460.0,0.3312]
[1762209441418,0.138396,106470.0,106460.0,0.37566]
[1762209441719,0.138396,106470.0,106460.0,0.37562]
[1762209441916,0.138396,106470.0,106460.0,0.4695748]
[1762209442226,0.138396,106470.0,106460.0,0.4695348]
[1762209442426,0.04445,106470.0,106460.0,0.4695348]
[1762209442628,0.02218,106470.0,106460.0,0.1500748]
[1762209442821,0.04445,106470.0,106460.0,0.4811548]
[1762209443018,0.138396,106470.0,106460.0,0.8419548]
[1762209443913,0.138396,106470.0,106460.0,0.37554]
[1762209444116,1.5,106470.0,106460.0,0.37554]
[1762209444316,0.38266867,106480.0,106470.0,0.138406]
[1762209444317,0.42711867,106480.0,106470.0,0.138406]
[1762209444528,0.41789,106480.0,106470.0,0.138406]
[1762209445226,0.05709,106480.0,106470.0,0.499206]
[1762209446334,0.1413829,106490.0,106480.0,0.1383972]
[1762209446629,0.1413829,106490.0,106480.0,0.4692372]
[1762209446824,0.003,106490.0,106480.0,0.4803572]
[1762209447027,0.003,106490.0,106480.0,0.8411572]
[1762209448125,0.41829,106520.0,106510.0,0.1372408]
[1762209449828,0.5121919,106520.0,106510.0,0.04333]
[1762209450224,0.1498895,106500.0,106490.0,0.37568]
[1762209450424,0.1498895,106500.0,106490.0,0.4696083]
[1762209451132,0.1498895,106500.0,106490.0,0.37568]
[1762209451531,0.1498895,106500.0,106490.0,0.4695283]
[1762209452425,0.1498895,106500.0,106490.0,0.3756]
[1762209452834,0.1498895,106500.0,106490.0,0.4695283]
[1762209453026,0.1498895,106500.0,106490.0,0.3756]
[1762209453227,0.1498895,106500.0,106480.0,0.3608]
[1762209453428,0.4974583,106490.0,106480.0,0.04484]
[1762209453628,0.1366583,106490.0,106480.0,0.04484]
[1762209453834,0.4974583,106490.0,106480.0,0.37548]
[1762209454137,0.04273,106490.0,106480.0,0.4805371]
[1762209454432,0.02139,106490.0,106480.0,0.8413371]
[1762209454733,0.1498948,106500.0,106490.0,0.138769]
[1762209455129,0.1498948,106500.0,106490.0,0.04484]
[1762209455334,2.0106948,106500.0,106490.0,0.04484]
[1762209456335,0.136659,106490.0,106480.0,0.37548]
[1762209457929,0.497459,106490.0,106480.0,0.37528]
[1762209458127,0.136659,106490.0,106480.0,0.37528]
[1762209458332,0.497459,106490.0,106480.0,0.37528]
[1762209459435,0.1499078,106480.0,106470.0,0.1387822]
[1762209459629,0.1499078,106480.0,106470.0,0.4690222]
[1762209459838,0.1366767,106470.0,106460.0,0.04493695]
[1762209460139,0.1366767,106470.0,106460.0,0.37521695]
[1762209460340,0.1366767,106470.0,106460.0,0.04493695]
[1762209460539,0.1366767,106470.0,106460.0,0.13889245]
[1762209460734,0.1366767,106470.0,106460.0,0.46913245]
[1762209460939,0.8277167,106470.0,106460.0,9.695e-05]
[1762209461140,0.4669167,106470.0,106460.0,9.695e-05]
[1762209461348,0.8277167,106470.0,106460.0,9.695e-05]
[1762209461639,0.83715977,106470.0,106460.0,9.695e-05]
[1762209464738,0.47635977,106470.0,106460.0,0.09405245]
[1762209465042,0.83715977,106470.0,106460.0,0.09405245]
[1762209466441,0.83715977,106470.0,106460.0,9.695e-05]
[1762209466641,1.07195977,106470.0,106460.0,9.695e-05]
[1762209468338,0.83715977,106470.0,106460.0,9.695e-05]
[1762209469644,1.07195977,106470.0,106460.0,9.695e-05]
[1762209470140,0.1520432,106440.0,106430.0,0.86293826]
[1762209470542,0.1520432,106440.0,106430.0,0.53309826]
[1762209470940,0.15214015,106440.0,106430.0,0.53309826]
[1762209472943,0.15214015,106440.0,106430.0,0.03350626]
[1762209473243,0.1520519,106430.0,106420.0,0.86592394]
[1762209473845,0.05807,106430.0,106420.0,0.86592394]
[1762209474746,0.1520513,106430.0,106420.0,0.53620394]
[1762209474946,0.1520513,106430.0,106420.0,0.86588394]
[1762209475647,0.05807,106430.0,106420.0,0.86588394]
[1762209476840,0.1520514,106430.0,106420.0,0.86588394]
[1762209478248,0.1520514,106430.0,106420.0,0.83237768]
[1762209478447,0.1520514,106430.0,106420.0,0.86588394]
[1762209478848,0.1520514,106430.0,106420.0,0.83237768]
[1762209479646,0.1520514,106430.0,106420.0,0.47158098]
[1762209480352,0.1520514,106430.0,106420.0,0.83238098]
[1762209481650,0.16149145,106430.0,106420.0,0.83238098]
[1762209482147,0.04441,106430.0,106420.0,0.84331098]
[1762209482358,0.15214745,106440.0,106430.0,0.1387913]
[1762209482542,0.15214745,106440.0,106430.0,0.4995913]
[1762209482543,0.15213945,106440.0,106430.0,0.4995913]
[1762209482750,0.05816695,106440.0,106430.0,0.4995913]
[1762209483444,0.0939813,106430.0,106420.0,0.38669078]
[1762209483645,0.16127463,106430.0,106420.0,0.40871078]
[1762209484253,0.16127463,106430.0,106420.0,0.50270098]
[1762209486456,0.16127463,106430.0,106420.0,0.55348152]
[1762209488251,0.16127463,106430.0,106420.0,0.04791078]
[1762209488450,0.52207463,106430.0,106420.0,0.02589078]
[1762209488660,0.52207463,106430.0,106420.0,0.00310078]
[1762209489852,0.52207463,106430.0,106420.0,0.04791078]
[1762209490957,0.52207463,106430.0,106420.0,0.14190098]
[1762209491155,0.52207463,106430.0,106420.0,0.04791078]
[1762209491365,0.52207463,106430.0,106420.0,0.02589078]
[1762209492362,0.52207463,106430.0,106420.0,0.00310078]
[1762209492550,0.54349279,106430.0,106420.0,0.00310078]
[1762209493056,0.52207463,106430.0,106420.0,0.00310078]
[1762209493456,0.92752238,106430.0,106420.0,0.00310078]
[1762209494458,0.1518096,106410.0,106400.0,0.09545054]
[1762209494763,9.695e-05,106410.0,106400.0,0.89109904]
[1762209495359,0.02292695,106410.0,106400.0,0.89109904]
[1762209495558,0.04535695,106410.0,106400.0,0.89109904]
[1762209496165,9.695e-05,106410.0,106400.0,0.89109904]
[1762209497969,0.02292695,106410.0,106400.0,0.89109904]
[1762209499262,9.695e-05,106410.0,106400.0,0.89109904]
[1762209502567,0.02292695,106410.0,106400.0,0.89109904]
[1762209502769,9.695e-05,106410.0,106400.0,0.89109904]
[1762209505267,0.03649,106440.0,106430.0,0.115232]
[1762209505476,0.02145381,106440.0,106430.0,0.508742]
[1762209505765,0.05887,106450.0,106440.0,0.1482232]
[1762209505965,0.05887,106450.0,106440.0,0.5090232]
[1762209506269,0.04526,106450.0,106440.0,0.88942528]
[1762209506569,0.11675886,106460.0,106450.0,0.04313]
[1762209506570,0.02283,106460.0,106450.0,0.04313]
[1762209506762,0.04526,106470.0,106460.0,0.1487455]
[1762209506963,0.41967,106480.0,106470.0,0.1370767]
[1762209507162,0.17444578,106480.0,106470.0,0.1370767]
[1762209508173,0.26838358,106480.0,106470.0,0.1430767]
[1762209508363,0.16239641,106480.0,106470.0,0.1430767]
[1762209509271,0.16239641,106480.0,106470.0,0.5038767]
[1762209512969,0.16239641,106480.0,106470.0,0.40993]
[1762209513167,0.16239641,106480.0,106470.0,0.04913]
[1762209513168,0.52319641,106480.0,106470.0,0.04913]
[1762209513364,0.75799641,106480.0,106470.0,0.006]
[1762209513664,1.08767641,106480.0,106470.0,0.02886]
[1762209513875,1.08767641,106480.0,106470.0,0.05084]
[1762209516175,1.08767641,106480.0,106470.0,0.006]
[1762209518972,1.08767641,106480.0,106470.0,0.1228067]
[1762209519177,0.52319641,106480.0,106470.0,0.1228067]
[1762209519381,0.85283641,106480.0,106470.0,0.1447867]
[1762209519578,0.02283,106480.0,106470.0,0.1547867]
[1762209519981,0.04547,106480.0,106470.0,0.1547867]
[1762209520176,0.04547,106480.0,106470.0,0.5155867]
[1762209523496,0.07138201,106490.0,106480.0,0.1387779]
[1762209524594,0.16531111,106490.0,106480.0,0.1387779]
[1762209525190,0.16531111,106490.0,106480.0,0.1467779]
[1762209528393,0.27123684,106490.0,106480.0,0.1467779]
[1762209528595,0.17730774,106490.0,106480.0,0.1578979]
[1762209528994,0.17730774,106490.0,106480.0,0.8482579]
[1762209529196,0.17730774,106490.0,106480.0,0.4874579]
[1762209529990,0.17730774,106490.0,106480.0,0.8482579]
[1762209532890,0.27123684,106490.0,106480.0,0.8482579]
[1762209534000,0.27123684,106490.0,106480.0,0.8371379]
[1762209534888,0.27123684,106490.0,106480.0,0.1467779]
[1762209534889,0.37716257,106490.0,106480.0,0.1467779]
[1762209535095,0.37716257,106490.0,106480.0,0.18052029]
[1762209537902,0.73796257,106490.0,106480.0,0.18052029]
[1762209538298,0.27125816,106490.0,106480.0,0.18052029]
[1762209538900,0.63205816,106490.0,106480.0,0.18052029]
[1762209539196,0.63205816,106490.0,106480.0,0.04174239]
[1762209539495,0.63205816,106490.0,106480.0,0.008]
[1762209540002,0.63205816,106490.0,106480.0,0.02991]
[1762209540602,0.63205816,106490.0,106480.0,0.05228]
[1762209541309,0.63205816,106490.0,106480.0,0.05128]
[1762209542601,0.86681816,106490.0,106480.0,0.007]
[1762209542898,0.63205816,106490.0,106480.0,0.007]
[1762209543104,0.86681816,106490.0,106480.0,0.007]
[1762209543398,0.63205816,106490.0,106480.0,0.05128]
[1762209544395,0.63205816,106490.0,106480.0,0.007]
[1762209544596,0.86681816,106490.0,106480.0,0.007]
[1762209545896,0.63205816,106490.0,106480.0,0.1452182]
[1762209546098,0.63205816,106490.0,106480.0,0.05128]
[1762209546305,0.63205816,106490.0,106480.0,0.007]
[1762209546997,0.86681816,106490.0,106480.0,0.007]
[1762209547198,0.89188301,106490.0,106480.0,0.007]
[1762209548302,0.1151182,106480.0,106470.0,0.12768719]
[1762209548603,0.58553525,106480.0,106470.0,0.17196719]
[1762209548810,0.94633525,106480.0,106470.0,0.17196719]
[1762209549004,0.58553525,106480.0,106470.0,0.17196719]
[1762209549209,0.94633525,106480.0,106470.0,0.17196719]
[1762209549709,0.58553525,106480.0,106470.0,0.17196719]
[1762209550008,0.4795882,106480.0,106470.0,0.17196719]
[1762209550200,0.58553525,106480.0,106470.0,0.17196719]
[1762209550400,0.94633525,106480.0,106470.0,0.17196719]
[1762209551003,0.8403882,106480.0,106470.0,0.08502239]
[1762209551205,0.94633525,106480.0,106470.0,0.08502239]
[1762209552004,0.94633525,106480.0,106470.0,0.05128]
[1762209552704,0.94633525,106480.0,106470.0,0.007]
[1762209553397,1.0522823,106480.0,106470.0,0.007]
[1762209553595,0.8403882,106480.0,106470.0,0.007]
[1762209553806,0.94633525,106480.0,106470.0,0.007]
[1762209554399,0.1503363,106470.0,106460.0,0.07732239]
[1762209554701,0.61708335,106470.0,106460.0,0.17127759]
[1762209555007,0.61708335,106470.0,106460.0,0.07732239]
[1762209555602,0.7230304,106470.0,106460.0,0.04074239]
[1762209555804,0.7230304,106470.0,106460.0,0.007]
[1762209556204,0.5111363,106470.0,106460.0,0.04074239]
[1762209556403,0.7230304,106470.0,106460.0,0.04074239]
[1762209556809,0.7230304,106470.0,106460.0,0.007]
[1762209557006,0.7230304,106470.0,106460.0,0.05042]
[1762209557201,0.7230304,106470.0,106460.0,0.08416239]
[1762209557411,0.7230304,106470.0,106460.0,0.05042]
[1762209558007,0.25628335,106470.0,106460.0,0.08416239]
[1762209558224,0.61708335,106470.0,106460.0,0.08416239]
[1762209559416,0.7230304,106470.0,106460.0,0.08416239]
[1762209559722,0.61708335,106470.0,106460.0,0.08416239]
[1762209559908,0.7230304,106470.0,106460.0,0.17811759]
[1762209560818,0.7230304,106470.0,106460.0,0.15644759]
[1762209561015,0.7230304,106470.0,106460.0,0.04074239]
[1762209562610,0.7230304,106470.0,106460.0,0.06249239]
[1762209563621,0.7230304,106470.0,106460.0,0.15644759]
[1762209564718,0.7230304,106470.0,106460.0,0.17811759]
[1762209564921,0.7230304,106470.0,106460.0,0.15644759]
[1762209565310,1.0524704,106470.0,106460.0,0.15644759]
[1762209565819,0.6916704,106470.0,106460.0,0.15644759]
[1762209566015,1.0524704,106470.0,106460.0,0.00574239]
[1762209566217,0.152474,106450.0,106440.0,0.09406208]
[1762209566413,0.61922105,106450.0,106440.0,0.09406208]
[1762209566814,0.61922105,106450.0,106440.0,0.10805208]
[1762209567010,0.61922105,106450.0,106440.0,0.09406208]
[1762209567216,1.0098181,106450.0,106440.0,0.007]
[1762209567523,1.03130235,106450.0,106440.0,0.007]
[1762209568018,1.2861553,106450.0,106440.0,0.007]
[1762209568519,1.26467105,106450.0,106440.0,0.007]
[1762209568914,1.28635827,106450.0,106440.0,0.007]
[1762209569115,1.26467105,106450.0,106440.0,0.007]
[1762209570025,0.1150193,106410.0,106400.0,0.42430208]
[1762209570320,0.24196635,106410.0,106400.0,0.09631208]
[1762209570523,0.1360193,106410.0,106400.0,0.05853]
[1762209570719,0.24196635,106410.0,106400.0,0.05853]
[1762209571117,0.25486635,106410.0,106400.0,0.04567]
[1762209571322,0.25486635,106410.0,106400.0,0.05267]
[1762209571323,0.7216134,106410.0,106400.0,0.05267]
[1762209573019,0.7216134,106410.0,106400.0,0.02948]
[1762209573228,1.0510934,106410.0,106400.0,0.007]
[1762209573620,1.0510934,106410.0,106390.0,0.32950819]
[1762209573621,0.1459882,106400.0,106390.0,6.819e-05]
[1762209573820,0.61273525,106400.0,106390.0,6.819e-05]
[1762209574518,0.61273525,106400.0,106380.0,0.00310194]
[1762209574519,0.148937,106390.0,106380.0,0.00310194]
[1762209574821,1.0511111,106390.0,106380.0,0.00310194]
[1762209575116,1.0451111,106390.0,106380.0,0.00310194]
[1762209575322,0.1360547,106370.0,106360.0,0.1525735]
[1762209575524,0.23506994,106370.0,106360.0,0.1525735]
[1762209575720,0.23506994,106370.0,106360.0,0.05853]
[1762209575924,0.24796994,106370.0,106360.0,0.05853]
[1762209576325,0.69748317,106370.0,106360.0,0.05853]
[1762209576530,0.1460235,106360.0,106350.0,0.41897]
[1762209576827,0.1460235,106360.0,106350.0,0.07103]
[1762209576828,0.33168378,106360.0,106350.0,0.07103]
[1762209577022,0.33168378,106360.0,106350.0,0.05817]
[1762209577722,0.33168378,106360.0,106350.0,0.1650824]
[1762209578023,0.69248378,106360.0,106350.0,0.05817]
[1762209578429,0.70178123,106360.0,106350.0,0.05817]
[1762209579029,0.70278123,106360.0,106350.0,0.05817]
[1762209579827,0.70278123,106360.0,106350.0,0.1522224]
[1762209580024,0.33202123,106360.0,106350.0,0.03498]
[1762209580420,0.69282123,106360.0,106350.0,0.03498]
[1762209581031,0.69282123,106360.0,106350.0,0.0125]
[1762209583431,0.92790123,106360.0,106350.0,0.0125]
[1762209585027,0.93190123,106360.0,106350.0,0.0125]
[1762209586323,0.69682123,106360.0,106350.0,0.0125]
[1762209586521,0.93190123,106360.0,106350.0,0.0125]
[1762209586832,0.1376016,106350.0,106340.0,0.00310311]
[1762209587030,0.66197007,106350.0,106340.0,0.00310311]
[1762209587330,1.02277007,106350.0,106340.0,0.00310311]
[1762209587528,1.02277007,106350.0,106340.0,0.02562311]
[1762209587830,1.02277007,106350.0,106340.0,0.05999311]
[1762209588032,1.02777007,106350.0,106340.0,0.05999311]
[1762209588230,1.02777007,106350.0,106340.0,0.04676311]
[1762209590721,0.66697007,106350.0,106340.0,0.04676311]
[1762209590926,1.02777007,106350.0,106340.0,0.04676311]
[1762209592733,1.02777007,106350.0,106340.0,0.00310311]
[1762209596326,1.02777007,106350.0,106340.0,0.05999311]
[1762209596529,1.02777007,106350.0,106340.0,0.00310311]
[1762209597136,1.02777007,106350.0,106340.0,0.04676311]
[1762209597534,1.02777007,106350.0,106340.0,0.02562311]
[1762209597929,1.02777007,106350.0,106340.0,0.04676311]
[1762209598439,0.68477633,106350.0,106340.0,0.09716431]
[1762209598637,0.68477633,106350.0,106340.0,0.15405431]
[1762209599034,0.57854306,106350.0,106340.0,0.15405431]
[1762209599435,0.57854306,106350.0,106340.0,0.51485431]
[1762209599638,0.47230979,106350.0,106340.0,0.51485431]
[1762209599831,0.24890306,106350.0,106340.0,0.51485431]
[1762209600036,0.57858306,106350.0,106340.0,0.51485431]
[1762209600236,0.15485146,106350.0,106340.0,0.51485431]
[1762209600440,0.11126252,106350.0,106340.0,0.51485431]
[1762209601033,0.20023133,106370.0,106360.0,0.1165627]
[1762209601235,0.60332393,106380.0,106370.0,0.1509238]
[1762209601434,0.70951826,106380.0,106370.0,0.05689]
[1762209601738,0.61548866,106380.0,106370.0,0.1509238]
[1762209602041,0.71906101,106380.0,106370.0,0.1509238]
[1762209602242,0.48552235,106380.0,106370.0,0.1509238]
[1762209602541,0.41264735,106380.0,106370.0,0.1509238]
[1762209602840,0.41264735,106380.0,106370.0,0.4806038]
[1762209603036,0.62979826,106390.0,106380.0,0.1509159]
[1762209603236,0.6514814,106390.0,106380.0,0.1509159]
[1762209603435,0.15800564,106390.0,106380.0,0.1509159]
[1762209603637,0.02168314,106390.0,106380.0,0.5117159]
[1762209603832,0.06398314,106390.0,106380.0,0.5117159]
[1762209604143,0.0423,106400.0,106390.0,0.150907]
[1762209604647,0.02493515,106420.0,106400.0,0.1072301]
[1762209604832,0.08409513,106430.0,106420.0,0.05689]
[1762209604833,0.06778651,106430.0,106420.0,0.05689]
[1762209605032,0.0423,106440.0,106430.0,0.05689]
[1762209605339,0.0423,106440.0,106430.0,0.74733]
[1762209606435,0.033558,106450.0,106440.0,0.02252]
[1762209606732,0.18738376,106450.0,106440.0,0.05689]
[1762209607655,0.19338376,106450.0,106440.0,0.05689]
[1762209608146,0.060708,106450.0,106440.0,0.05689]
[1762209608539,0.19338376,106450.0,106440.0,0.05689]
[1762209609449,0.28734826,106450.0,106440.0,0.05689]
[1762209609856,0.64814826,106450.0,106440.0,0.05689]
[1762209610043,0.65527826,106450.0,106440.0,0.02252]
[1762209610851,0.1362734,106440.0,106430.0,0.38645]
[1762209611148,0.26894916,106440.0,106430.0,0.38645]
[1762209612344,0.63474916,106440.0,106430.0,0.38645]
[1762209612950,0.63474916,106440.0,106430.0,0.05689]
[1762209613152,0.63474916,106440.0,106430.0,0.38641]
[1762209613354,0.54077576,106440.0,106430.0,0.38641]
[1762209613552,0.63474846,106440.0,106430.0,0.38641]
[1762209613754,0.54077576,106440.0,106430.0,0.4803915]
[1762209614345,0.63474746,106440.0,106430.0,0.38641]
[1762209615045,0.54077576,106440.0,106430.0,0.480391]
[1762209615551,0.17997576,106440.0,106430.0,0.480391]
[1762209616945,0.15882576,106440.0,106430.0,0.480391]
[1762209617451,0.02615,106440.0,106430.0,0.480391]
[1762209617652,0.005,106440.0,106430.0,0.841191]
[1762209620444,0.0969658,106450.0,106440.0,0.152004]
[1762209620649,0.0969658,106450.0,106440.0,0.512804]
[1762209621847,0.1405858,106450.0,106440.0,0.512804]
[1762209622046,0.27326156,106450.0,106440.0,0.05803]
[1762209622247,0.25158156,106450.0,106440.0,0.152004]
[1762209622448,0.25758156,106450.0,106440.0,0.152004]
[1762209622951,0.23564156,106450.0,106440.0,0.152004]
[1762209623147,0.23564156,106450.0,106440.0,0.512804]
[1762209623752,0.23564156,106450.0,106440.0,0.152004]
[1762209624758,0.24494211,106450.0,106440.0,0.152004]
[1762209624959,0.26688211,106450.0,106440.0,0.152004]
[1762209625157,0.24494211,106450.0,106440.0,0.152004]
[1762209625354,0.28856211,106450.0,106440.0,0.05803]
[1762209625561,0.64936211,106450.0,106440.0,0.38739]
[1762209626952,0.28856211,106450.0,106440.0,0.38735]
[1762209627157,0.64936211,106450.0,106440.0,0.38735]
[1762209627553,0.28856211,106450.0,106440.0,0.38735]
[1762209627860,0.28856211,106450.0,106440.0,0.481324]
[1762209628061,0.64936211,106450.0,106440.0,0.38735]
[1762209629162,0.64936211,106450.0,106440.0,0.481324]
[1762209629754,0.64936211,106450.0,106440.0,0.38735]
[1762209630554,0.64936211,106450.0,106440.0,0.05803]
[1762209630763,0.64936211,106450.0,106440.0,0.38735]
[1762209631350,0.116994,106440.0,106430.0,0.01323]
[1762209631558,0.63265976,106440.0,106430.0,0.38559]
[1762209632271,0.63165976,106440.0,106430.0,0.38559]
[1762209632763,0.63565976,106440.0,106430.0,0.38659]
[1762209632964,0.63565976,106440.0,106430.0,0.4805728]
[1762209633155,0.27485976,106440.0,106430.0,0.4805728]
[1762209633356,0.27485976,106440.0,106430.0,0.51415907]
[1762209633552,0.63565976,106440.0,106430.0,0.51415907]
[1762209633755,0.63565976,106440.0,106430.0,0.42017627]
[1762209634460,0.502984,106440.0,106430.0,0.47081835]
[1762209634662,0.63565976,106440.0,106430.0,0.47081835]
[1762209634864,0.63565976,106440.0,106430.0,0.42017627]
[1762209636367,0.82807951,106440.0,106430.0,0.02215]
[1762209636668,0.82807951,106440.0,106430.0,0.04431]
[1762209636868,0.82117951,106440.0,106430.0,0.05731]
[1762209637966,0.82807951,106440.0,106430.0,0.001]
[1762209638370,0.82807951,106440.0,106430.0,0.04431]
[1762209638665,0.82117951,106440.0,106430.0,0.05731]
[1762209638862,0.82117951,106440.0,106430.0,0.02215]
[1762209639076,0.1392014,106420.0,106410.0,0.10557964]
[1762209639272,0.1392014,106420.0,106410.0,0.04331]
[1762209639273,1.50827691,106420.0,106410.0,0.04331]
[1762209639473,1.50827691,106420.0,106400.0,0.013]
[1762209639474,0.1392102,106410.0,106400.0,0.05631]
[1762209639672,0.71214054,106410.0,106400.0,0.05631]
[1762209640277,0.71114054,106410.0,106400.0,0.05631]
[1762209642368,0.63166882,106410.0,106400.0,0.05631]
[1762209642568,0.63166882,106410.0,106390.0,0.013]
[1762209642569,0.1392191,106400.0,106390.0,0.05631]
[1762209642776,0.5000191,106400.0,106390.0,0.05631]
[1762209642970,0.63267772,106400.0,106390.0,0.05631]
[1762209643378,0.6420972,106400.0,106390.0,0.150328]
[1762209643578,0.6450972,106400.0,106390.0,0.150328]
[1762209644770,0.9743772,106400.0,106390.0,0.05631]
[1762209645373,0.9743772,106400.0,106390.0,0.150328]
[1762209646072,0.9743772,106400.0,106390.0,0.05631]
[1762209646485,0.9743772,106400.0,106390.0,0.150328]
[1762209646888,0.6135772,106400.0,106390.0,0.150328]
[1762209647080,0.9743772,106400.0,106390.0,0.150328]
[1762209650286,0.6450972,106400.0,106390.0,0.150328]
[1762209650588,0.6450972,106400.0,106390.0,0.05631]
[1762209650783,0.6519972,106400.0,106390.0,0.04331]
[1762209651087,0.6450972,106400.0,106390.0,0.057]
[1762209655785,0.6450972,106400.0,106390.0,0.1510188]
[1762209656385,0.6450972,106400.0,106390.0,0.057]
[1762209656694,0.2842972,106400.0,106390.0,0.057]
[1762209656895,0.2842972,106400.0,106390.0,0.1510188]
[1762209657288,0.6450972,106400.0,106390.0,0.1510188]
[1762209657490,0.2842972,106400.0,106390.0,0.1510188]
[1762209657693,0.6450972,106400.0,106390.0,0.1510188]
[1762209658093,0.2842972,106400.0,106390.0,0.1510188]
[1762209658495,0.6450972,106400.0,106390.0,0.1510188]
[1762209659698,0.6450972,106400.0,106390.0,0.057]
[1762209661589,0.6450972,106400.0,106390.0,0.1510188]
[1762209661790,0.2842972,106400.0,106390.0,0.1510188]
[1762209662392,0.3461905,106400.0,106390.0,0.1510188]
[1762209663496,0.7069905,106400.0,106390.0,0.057]
[1762209664000,0.51243858,106400.0,106390.0,0.057]
[1762209664196,0.7069905,106400.0,106390.0,0.057]
[1762209664395,0.61855795,106400.0,106390.0,0.057]
[1762209664697,0.51243858,106400.0,106390.0,0.057]
[1762209664899,0.25775795,106400.0,106390.0,0.057]
[1762209665104,0.61855795,106400.0,106390.0,0.1510188]
[1762209665299,0.25775795,106400.0,106390.0,0.1510188]
[1762209667605,0.16374885,106400.0,106390.0,0.1510188]
[1762209667905,0.25775885,106400.0,106390.0,0.1510188]
[1762209668290,0.25775885,106400.0,106390.0,0.20166088]
[1762209669008,0.05762948,106400.0,106390.0,0.20166088]
[1762209669304,0.25775885,106400.0,106390.0,0.20166088]
[1762209671607,0.25775885,106400.0,106390.0,0.10764208]
[1762209673609,0.61855885,106400.0,106390.0,0.10764208]
[1762209673910,0.61855885,106400.0,106390.0,0.14149675]
[1762209674309,0.61855885,106400.0,106390.0,0.10764208]
[1762209674904,0.61855885,106400.0,106390.0,0.14149804]
[1762209675209,0.61855885,106400.0,106390.0,0.09085596]
[1762209675509,0.61855885,106400.0,106390.0,0.14149804]
[1762209677900,0.05153,106390.0,106380.0,0.06786069]
[1762209678105,0.1528854,106360.0,106350.0,0.04523]
[1762209678407,0.61980477,106360.0,106350.0,0.04523]
[1762209678811,0.64233583,106360.0,106350.0,0.04523]
[1762209679008,0.64243017,106360.0,106350.0,0.04523]
[1762209679211,0.61989911,106360.0,106350.0,0.02243]
[1762209679412,0.61989911,106360.0,106350.0,0.04523]
[1762209679911,0.64240661,106360.0,106350.0,0.04523]
[1762209680315,0.54028724,106360.0,106350.0,0.04523]
[1762209680516,0.64640661,106360.0,106350.0,0.04523]
[1762209681107,0.54028724,106360.0,106350.0,0.04523]
[1762209681306,0.64640661,106360.0,106350.0,0.04523]
[1762209681908,0.54028724,106360.0,106350.0,0.04523]
[1762209682206,0.64640661,106360.0,106350.0,0.04523]
[1762209683015,0.64640661,106360.0,106350.0,0.02243]
[1762209683218,0.1401342,106350.0,106340.0,0.39033311]
[1762209683408,0.71317294,106350.0,106340.0,0.39033311]
[1762209684307,0.71617294,106350.0,106340.0,0.39033311]
[1762209685514,0.72481294,106350.0,106340.0,0.33226311]
[1762209685715,0.73404562,106350.0,106340.0,0.35469311]
[1762209686103,0.73404562,106350.0,106340.0,0.37749311]
[1762209686310,0.73404562,106350.0,106340.0,0.48439621]
[1762209686710,0.62792625,106350.0,106340.0,0.48439621]
[1762209688114,0.16443205,106350.0,106340.0,0.84519621]
[1762209688809,0.16443205,106350.0,106340.0,0.48439621]
[1762209689210,0.25848635,106350.0,106340.0,0.48439621]
[1762209690312,0.003,106350.0,106340.0,0.84519621]
[1762209690917,0.04747,106350.0,106340.0,0.84519621]
[1762209692414,0.04647,106350.0,106340.0,0.85465576]
[1762209692813,0.02333434,106360.0,106350.0,0.1162043]
[1762209693120,0.04456434,106360.0,106350.0,0.1515043]
[1762209693325,0.04456434,106360.0,106350.0,0.5123043]
[1762209694111,0.04856434,106360.0,106350.0,0.5123043]
[1762209698129,0.00409434,106360.0,106350.0,0.5123043]
[1762209698827,4.34e-06,106360.0,106350.0,0.5123043]
[1762209700023,4.34e-06,106360.0,106350.0,0.7473843]
[1762209700625,4.34e-06,106360.0,106350.0,0.85350367]
[1762209702229,0.04447,106380.0,106370.0,0.1514866]
[1762209702426,0.04447,106380.0,106370.0,0.8413266]
[1762209702821,0.02324,106380.0,106370.0,0.8413266]
[1762209703125,0.24460897,106390.0,106380.0,0.1514777]
[1762209703529,0.15058937,106390.0,106380.0,0.1514777]
[1762209704538,0.25402673,106390.0,106380.0,0.1514777]
[1762209704727,0.25402673,106390.0,106380.0,0.5122777]
[1762209705435,0.25802673,106390.0,106380.0,0.5132777]
[1762209707830,0.16400783,106390.0,106380.0,0.5132777]
[1762209708231,0.03665846,106390.0,106380.0,0.5132777]
[1762209708736,0.04888,106390.0,106380.0,0.5132777]
[1762209708941,0.15499937,106390.0,106380.0,0.5132777]
[1762209709137,0.02724,106390.0,106380.0,0.5132777]
[1762209709829,0.04888,106390.0,106380.0,0.5132777]
[1762209710441,0.02724,106390.0,106380.0,0.5132777]
[1762209710643,0.004,106390.0,106380.0,0.5132777]
[1762209714441,0.02542,106390.0,106380.0,0.5132777]
[1762209715445,0.04706,106390.0,106380.0,0.5132777]
[1762209716043,0.02542,106390.0,106380.0,0.5132777]
[1762209716742,0.004,106390.0,106380.0,0.5132777]
[1762209718439,0.5028593,106420.0,106410.0,0.1385312]
[1762209718641,0.5028593,106420.0,106410.0,0.1515812]
[1762209719344,0.4978593,106420.0,106410.0,0.1515812]
[1762209719646,0.61097867,106420.0,106410.0,0.1525812]
[1762209720348,0.62040712,106420.0,106410.0,0.1525812]
[1762209720848,0.61340712,106420.0,106410.0,0.1515812]
[1762209721050,0.61740712,106420.0,106410.0,0.1525812]
[1762209721238,0.25660712,106420.0,106410.0,0.1525812]
[1762209721547,0.05548845,106420.0,106410.0,0.1525812]
[1762209721942,0.04606,106420.0,106410.0,0.1525812]
[1762209722550,0.04306,106420.0,106410.0,0.5123812]
[1762209722746,0.001,106420.0,106410.0,0.5123812]
[1762209723047,0.40386,106440.0,106430.0,0.05758]
[1762209723237,0.40386,106440.0,106430.0,0.4803236]
[1762209723238,0.50997937,106440.0,106430.0,0.4803236]
[1762209723745,0.8001218,106450.0,106440.0,0.1515548]
[1762209723746,0.003,106450.0,106440.0,0.1515548]
[1762209723956,0.003,106450.0,106440.0,0.5123548]
[1762209724252,0.02442,106450.0,106440.0,0.5123548]
[1762209724550,0.15205553,106450.0,106440.0,0.5123548]
[1762209724755,0.04606,106450.0,106440.0,0.5123548]
[1762209724944,0.15205553,106450.0,106440.0,0.5123548]
[1762209725351,0.15705553,106450.0,106440.0,0.5133548]
[1762209726152,0.25102143,106450.0,106440.0,0.5133548]
[1762209727652,0.26018457,106450.0,106440.0,0.5133548]
[1762209728156,0.008,106450.0,106440.0,0.61935033]
[1762209728354,0.25102143,106450.0,106440.0,0.5133548]